Cogmind - Beta 14 @@@ ROGUE MODE // 2024.08.10 @ 12:36:34 Player: Evilsquid Result: Self-destructed Performance ------------- Evolutions (4) 2000 Regions Visited (5) 1000 Robots Destroyed (67) 335 Value Destroyed (1810) 1810 Prototype IDs (12) 240 Alien Tech Used (0) 0 Bonus (-1126) -1126 TOTAL SCORE: 4259 Bonus ------- Follower Combat Kills 304 Registered with UFD 300 Friendly Fire -1730 Cogmind --------- Core Integrity 773/850 Matter 183/300 Energy 77/310 System Corruption 16% Temperature Hot (236) Movement Treading (252) Ox1 Location -6/Factory Parts ------- > --- POWER (1) -------- Fission Core > --- PROPULSION (4) --- Spiked Treads Spiked Treads Armored Treads Medium Treads > --- UTILITY (8) ------ Scrap Suit High-capacity Storage Unit Experimental Sensor Array Improved Targeting Computer Medium Reactive Plating Medium Reactive Plating Force Field > --- WEAPON (2) ------- Pulse Rifle Barrage Gun > --- INVENTORY (20) --- Fission Core Scrap Suit Advanced Heat Sink Cooling System Energy Well (350) Subdweller Optics Improved Signal Interpreter Improved Medium Armor Plating Improved Medium Armor Plating Improved Shield Generator Subdweller Machine Gun Subdweller Machine Gun Heavy Flak Cannon CPS Tube (2) CPS Tube (2) CPS Tube (2) CPS Tube (2) Falx Peak State ------------ > --- POWER ------------ Fission Core > --- PROPULSION ------- Spiked Treads Spiked Treads Armored Treads Improved Medium Treads > --- UTILITY ---------- Scrap Suit High-capacity Storage Unit Experimental Sensor Array Improved Targeting Computer Medium Reactive Plating Medium Reactive Plating Medium Reactive Plating > --- WEAPON ----------- Junk Cannon > --- INVENTORY -------- Fission Core Scrap Suit Advanced Heat Sink Cooling System Energy Well Subdweller Optics Improved Medium Armor Plating Improved Medium Armor Plating Improved Shield Generator Pulse Rifle Subdweller Machine Gun Subdweller Machine Gun Barrage Gun Heavy Flak Cannon CPS Tube CPS Tube CPS Tube CPS Tube Falx [Rating: 68] Favorites ----------- Power Ion Engine Engine Ion Engine Power Core Nuclear Core Propulsion Spiked Treads Treads Spiked Treads Wheel Wheel Utility High-capacity Storage Unit Device V3-11A's Pendant Storage High-capacity Storage Unit Processor Improved Targeting Computer Protection Medium Reactive Plating Weapon Battle Cannon Energy Gun Pulse Rifle Energy Cannon Subdweller Beam Cannon Ballistic Gun Subdweller Machine Gun Ballistic Cannon Battle Cannon Special Weapon Junk Cannon Build | -11 -10 -10 -9 -9 -6 ------- Run | Yrd Mat Sub Rec Scr Fac Slots Evolved 8 | . . . . . 8 Power . | . . . . . . Propulsion 2 | . . . . . 2 Utility 6 | . . . . . 6 Weapon . | . . . . . . Parts Attached 100 | 7 20 45 6 5 17 Power 21 | 1 4 11 3 1 1 Engine 19 | 1 4 11 2 1 . Core 2 | . . . 1 . 1 Reactor . | . . . . . . Propulsion 16 | 2 7 4 . . 3 Treads 15 | 2 6 4 . . 3 Leg . | . . . . . . Wheel 1 | . 1 . . . . Hover . | . . . . . . Flight . | . . . . . . Utility 39 | 2 4 16 3 3 11 Device 23 | 1 . 13 3 2 4 Storage 3 | 1 1 . . 1 . Processor 1 | . . . . . 1 Hackware . | . . . . . . Protection 12 | . 3 3 . . 6 Artifact . | . . . . . . Weapon 24 | 2 5 14 . 1 2 Energy Gun 2 | . . 1 . . 1 Energy Cannon 1 | . . 1 . . . Ballistic Gun 16 | 2 5 8 . . 1 Ballistic Cannon 4 | . . 4 . . . Launcher . | . . . . . . Special Weapon 1 | . . . . 1 . Impact Weapon . | . . . . . . Slashing Weapon . | . . . . . . Piercing Weapon . | . . . . . . Special Melee Weapon . | . . . . . . Unidentified Prototypes 2 | . . 1 . 1 . Corrupted Parts 1 | . . . . . 1 System Corruption 15 | . . . . . 15 Parts Lost 3 | . . 1 1 . 1 Power . | . . . . . . Propulsion 1 | . . . . . 1 Utility 2 | . . 1 1 . . Weapon . | . . . . . . Highest Loss Streak 1 | . . 1 1 . 1 To Critical Strikes . | . . . . . . Average Slot Usage (%) 96 | . 99 100 99 91 87 Engine 10 | . 13 14 9 6 1 Core 3 | . . . 4 7 4 Treads 27 | . 25 28 28 28 25 Device 12 | . 3 11 13 14 16 Storage 13 | . 14 14 14 14 6 Protection 3 | . 10 2 . . 16 Energy Cannon 2 | . . 4 . . . Ballistic Gun 5 | . 27 6 . . 1 Ballistic Cannon 13 | . . 16 28 12 . Special Weapon 2 | . . . . 7 4 Peak Build Rating 68 | 7 9 18 19 29 68 Average Rating 21 | 5 8 15 17 24 62 On Entrance 13 | . 7 9 18 18 29 Naked Turns . | . . . . . . Heaviest Build 129 | 13 52 60 58 65 129 Greatest Support 90 | 40 40 40 40 40 90 Greatest Overweight (x) 4 | . 4 1 1 1 2 Average Overweight (x) . | . . 1 1 1 . Largest Inventory Capacity 20 | 8 20 20 20 20 20 Average Capacity 19 | 7 15 20 20 20 20 Most Carried 20 | 4 20 20 20 20 20 Average Carried 18 | 2 13 19 19 19 17 Final Capacity 20 | 8 20 20 20 20 20 Final Carried 20 | 4 20 20 20 20 19 Class Distribution -------------------- 66% | Derelict-Mutant 19% | Mutant 13% | Scavenger-Mutant Dominant Class ---------------- Mutant | -10/Materials Derelict-Mutant | -10/Subcaves Derelict-Mutant | -9/Recycling Derelict-Mutant | -9/Scraptown Derelict-Mutant | -6/Factory Resources | -11 -10 -10 -9 -9 -6 ----------- Run | Yrd Mat Sub Rec Scr Fac Matter Collected 2771 | 296 798 1034 307 87 249 Remotely . | . . . . . . Salvage Created 2639 | 127 778 498 414 . 822 Parts 144 | 7 49 36 13 . 39 Haulers Intercepted 4 | . 2 . . . 2 Recyclers Shooed 9 | . 1 . 5 . 3 Parts Field Recycled . | . . . . . . Retrieved Matter . | . . . . . . Parts Self-Destructed 22 | . . 22 . . . Prevented . | . . . . . . Kills | -11 -10 -10 -9 -9 -6 ------- Run | Yrd Mat Sub Rec Scr Fac Combat Hostiles Destroyed 41 | . 18 9 2 . 12 Melee 2 | . . . . . 2 Guns 28 | . 17 7 . . 4 Cannons 8 | . . 2 2 . 4 AOE 1 | . 1 . . . . Classes Destroyed 15 | 2 5 4 2 . 2 Worker 5 | . 3 . . . 2 Builder 1 | . . . 1 . . Tunneler 2 | 2 . . . . . Hauler 4 | . 2 . . . 2 Recycler 7 | 1 1 . 5 . . Turret 1 | . . 1 . . . Watcher 6 | . 3 . . . 3 Swarmer 11 | . 9 2 . . . Grunt 15 | . 9 . . . 6 Sentry 4 | . . . 2 . 2 Programmer 4 | . . . . . 4 Artisan 1 | . . 1 . . . Cobbler 2 | . . 2 . . . Subdweller 7 | . . 7 . . . Mutant 1 | . . . . . 1 Best Kill Streak 8 | 3 8 2 4 . 3 Combat Bots Only 4 | . 4 2 1 . 2 Max Kills in Single Turn 3 | 1 3 1 1 . 2 Gunslinging . | . . . . . . Exploded 1 | . 1 . . . . Melee 1 | . . . . . 1 Uniques/NPCs Destroyed . | . . . . . . Combat | -11 -10 -10 -9 -9 -6 -------- Run | Yrd Mat Sub Rec Scr Fac Hostile Shots Fired 307 | . 98 62 6 . 141 Missed 108 | . 40 20 . . 48 Damage Taken 3000 | . 606 1005 77 . 1312 Core 265 | . 68 120 . . 77 Absorbed by Shields 316 | . . . 12 . 304 Ignored by Resistances 114 | . . . . . 114 Regen/Repaired (Parts) 489 | . 342 . . 123 24 Core Remaining (%) 62 | 100 . . . 24 . Volleys Fired 298 | 13 104 97 27 . 57 Largest 2 | 2 2 2 2 . 2 Hottest 110 | 40 40 110 78 . 91 Shots Fired 562 | 26 208 188 54 . 86 Gun 382 | 26 208 90 . . 58 Cannon 152 | . . 98 54 . . Launcher . | . . . . . . Special 28 | . . . . . 28 Kinetic 480 | 26 208 164 54 . 28 Thermal 54 | . . 24 . . 30 Explosive . | . . . . . . Electromagnetic . | . . . . . . Impact 28 | . . . . . 28 Robot Hit Streak 23 | 8 12 18 7 . 23 Robot Miss Streak 7 | 2 7 4 7 . 2 Penetration Max . | . . . . . . Secondary Targets 3 | . 3 . . . . Max Gunslinging Chain 1 | . 1 . . . . Shots Hit Robots 297 | 17 117 67 29 . 67 Core Hits 120 | 9 49 27 10 . 25 Critical Kills . | . . . . . . Critical Parts Destroyed 5 | . . . . . 5 Critical Strikes 7 | . . . 1 . 6 Burn 1 | . . . . . 1 Blast 1 | . . . 1 . . Smash 5 | . . . . . 5 Melee Attacks . | . . . . . . Impact . | . . . . . . Slashing . | . . . . . . Piercing . | . . . . . . Sneak Attacks . | . . . . . . Combat Hostiles . | . . . . . . Follow-up Attacks . | . . . . . . Damage Inflicted 6787 | 132 1510 1265 625 . 3255 Guns 2785 | 132 1047 806 . . 800 Cannons 1076 | . . 457 619 . . Explosions 1042 | . 459 . . . 583 Melee . | . . . . . . Ramming 83 | . 4 2 6 . 71 Kinetic 3359 | 132 1047 1205 619 . 356 Thermal 1085 | . . 58 . . 1027 Explosive 459 | . 459 . . . . Electromagnetic . | . . . . . . Impact 1801 | . . . . . 1801 Slashing . | . . . . . . Piercing . | . . . . . . Highest Corruption 16 | . . . . . 16 Average Corruption 9 | . . . . . 9 Corruption Purged . | . . . . . . Corruption Blocked . | . . . . . . Effects 38 | . . . . . 38 Message Errors 11 | . . . . . 11 Matter Fused 12 | . . . . . 12 Heat Flow Errors 3 | . . . . . 3 Energy Discharges 4 | . . . . . 4 Parts Rejected 1 | . . . . . 1 Data Loss (minor) 1 | . . . . . 1 Data Loss (major) 1 | . . . . . 1 Misfires 1 | . . . . . 1 Alerts 2 | . . . . . 2 Misdirections 2 | . . . . . 2 Overload Shots . | . . . . . . Overflow Damage 1167 | . 146 . 12 . 1009 Projectiles 795 | . . . 12 . 783 Explosions 372 | . 146 . . . 226 Melee . | . . . . . . Knockbacks 23 | . . 4 6 . 13 Impact 14 | . . 1 . . 13 Kinetic 9 | . . 3 6 . . Secondary . | . . . . . . Self-Inflicted Damage 379 | . 47 . . . 332 Shots 5 | . 1 . . . 4 Rammed 16 | . 3 1 2 . 10 Targets Rammed 18 | . 3 1 2 . 12 Kicked . | . . . . . . Crushed 2 | . . . . . 2 Highest Temperature 255 | . 48 255 180 . 255 Average Temperature 53 | . 12 138 39 . 86 Received Heat Transfer 970 | . 153 501 21 . 295 Siege Activations . | . . . . . . Robots Corrupted 4 | . . . . . 4 Combat Hostiles 2 | . . . . . 2 Parts Fried 3 | . . . . . 3 Impact Corruptions 23 | . . . . . 23 Robots Melted . | . . . . . . Combat Hostiles . | . . . . . . Parts Melted 1 | . . . . . 1 Heat Transferred 1410 | . . 74 . . 1336 Parts Sabotaged . | . . . . . . Parts Stolen . | . . . . . . Parts Stripped . | . . . . . . Power Chain Reactions . | . . . . . . Alert | -11 -10 -10 -9 -9 -6 ------- Run | Yrd Mat Sub Rec Scr Fac Peak Influence 240 | 15 232 . 65 . 240 Initial 29 | . 9 . 29 . . Average 63 | 6 73 . 24 . 99 Maximum Alert Level 1 | . 1 . . . 1 Low Security (%) 96 | 100 96 . 100 . 90 Level 1 3 | . 3 . . . 9 Level 2 . | . . . . . . Level 3 . | . . . . . . Level 4 . | . . . . . . Level 5 . | . . . . . . High Security . | . . . . . . Max Security . | . . . . . . Squads Dispatched 9 | . 4 . . . 5 Investigation 3 | . 2 . . . 1 Extermination 3 | . . . . . 3 Reinforcement 3 | . 2 . . . 1 Assault . | . . . . . . Garrison . | . . . . . . Intercept . | . . . . . . Searches Triggered . | . . . . . . Construction Impeded . | . . . . . . Haulers Reinforced . | . . . . . . Active Scanning Responses . | . . . . . . Cargo Convoy Interrupts . | . . . . . . Stealth | -11 -10 -10 -9 -9 -6 --------- Run | Yrd Mat Sub Rec Scr Fac Distress Signals 5 | . 3 . . . 2 Communications Jammed . | . . . . . . Distress Signals . | . . . . . . Times Spotted 86 | . 34 24 3 . 25 Peak Tracking Total 6 | . 5 6 1 . 4 Tactical Retreats 6 | . 1 2 . . 3 Traps | -11 -10 -10 -9 -9 -6 ------- Run | Yrd Mat Sub Rec Scr Fac Traps Triggered 3 | . 1 2 . . . Indirectly . | . . . . . . Trap Hack Attempts . | . . . . . . Triggered . | . . . . . . Disarmed . | . . . . . . Reprogrammed . | . . . . . . Reused . | . . . . . . Traps Extracted . | . . . . . . Installed . | . . . . . . Triggered 1 | . . 1 . . . Machines | -11 -10 -10 -9 -9 -6 ---------- Run | Yrd Mat Sub Rec Scr Fac Machines Disabled 13 | . 5 2 1 . 5 Max in Single Turn 4 | . 4 1 1 . 4 Garrison Access 1 | . . . . . 1 Machines Repaired . | . . . . . . Machines Dismantled . | . . . . . . Machines Sabotaged . | . . . . . . Overloaded Fab Kills . | . . . . . . Hacking | -11 -10 -10 -9 -9 -6 --------- Run | Yrd Mat Sub Rec Scr Fac Machines Accessed 34 | . 8 3 12 6 5 Terminals 15 | . 6 . 6 . 3 Fabricators . | . . . . . . Repair Stations 1 | . 1 . . . . Recycling Units 7 | . 1 . 5 . 1 Scanalyzers . | . . . . . . Garrison Access 1 | . . . . . 1 Total Hacks 128 | . 50 7 34 29 8 Successful 100 | . 37 7 24 29 3 Failed 28 | . 13 . 10 . 5 Catastrophic 1 | . 1 . . . . Database Lockouts . | . . . . . . Manual 42 | . 18 . 21 . 3 Terminals 51 | . 24 . 21 . 6 Fabricators . | . . . . . . Repair Stations 25 | . 25 . . . . Recycling Units 14 | . 1 . 12 . 1 Scanalyzers . | . . . . . . Garrison Access 1 | . . . . . 1 Terminal Hacks 52 | . 7 7 8 29 1 Record 37 | . . 5 3 29 . Prototype ID Bank 1 | . 1 . . . . Open Door 1 | . . 1 . . . Open DSF 1 | . . . . . 1 Level Access Points 1 | . 1 . . . . Branch Access Points 1 | . 1 . . . . Unreport Threat 2 | . 1 . 1 . . Locate Traps 1 | . 1 . . . . Dispatch Records 1 | . . . 1 . . Zone Layout 4 | . 2 . 2 . . Garrison Registry 1 | . . . 1 . . Release Object 1 | . . 1 . . . Fabricator Hacks . | . . . . . . Repair Station Hacks 23 | . 23 . . . . Scan Component 12 | . 12 . . . . Repair 11 | . 11 . . . . Recycling Unit Hacks 7 | . 1 . 6 . . Report Inventory 5 | . 1 . 4 . . Retrieve Components 2 | . . . 2 . . Scanalyzer . | . . . . . . Garrison Access Hacks 1 | . . . . . 1 Seal Access 1 | . . . . . 1 Unauthorized Hacks 17 | . 6 . 10 . 1 Terminals 13 | . 6 . 7 . . Track 1 | . . . 1 . . Botnet 12 | . 6 . 6 . . Fabricators . | . . . . . . Repair Stations 1 | . . . . . 1 Recycling Units 3 | . . . 3 . . Tunnel 3 | . . . 3 . . Fedlink 1 | . . . . . 1 Scanalyzers . | . . . . . . Garrison Access . | . . . . . . Data Cores Recovered . | . . . . . . Used . | . . . . . . Hacking Detections 15 | . 6 . 6 . 3 Full Trace Events 5 | . 2 . 3 . . Feedback Events . | . . . . . . Feedback Blocked . | . . . . . . Robot Schematics Acquired . | . . . . . . Robots Built . | . . . . . . Authchips . | . . . . . . Time . | . . . . . . Total Robot Build Rating . | . . . . . . Part Schematics Acquired . | . . . . . . Parts Built . | . . . . . . Authchips . | . . . . . . Time . | . . . . . . Total Part Build Rating . | . . . . . . Parts Repaired 11 | . 11 . . . . Time 310 | . 310 . . . . Parts Recycled . | . . . . . . Recycled Matter . | . . . . . . Retrieved Matter . | . . . . . . Retrieved Components 12 | . . . 12 . . Parts Scanalyzed . | . . . . . . Part Schematics Acquired . | . . . . . . Parts Damaged . | . . . . . . Bothacking | -11 -10 -10 -9 -9 -6 ------------ Run | Yrd Mat Sub Rec Scr Fac Used RIF Installer . | . . . . . . Robots Hacked . | . . . . . . Non-combat . | . . . . . . Combat . | . . . . . . Robot Hacks Applied . | . . . . . . Relay Couplers Released . | . . . . . . Fabnet Peak Effective % . | . . . . . . Robots Rewired . | . . . . . . Allies Hacked . | . . . . . . Hacks Repelled . | . . . . . . Allies | -11 -10 -10 -9 -9 -6 -------- Run | Yrd Mat Sub Rec Scr Fac Total Allies 11 | . . 10 . 1 . Largest Group 4 | . . 4 1 1 1 Highest-Rated Group 76 | . . 76 19 35 35 Highest-Rated Ally 35 | . . 19 19 35 35 Total Orders . | . . . . . . Ally Attacks 60 | . . 41 6 . 13 Total Damage 1210 | . . 816 139 . 255 Kills 10 | . . 6 2 . 2 Allies Corrupted . | . . . . . . Allies Melted . | . . . . . . Intel | -11 -10 -10 -9 -9 -6 ------- Run | Yrd Mat Sub Rec Scr Fac Robot Analysis Total . | . . . . . . Derelict Logs Recovered 7 | . . 2 . 5 . Drone Launches . | . . . . . . Drone Recoveries . | . . . . . . Exploration | -11 -10 -10 -9 -9 -6 ------------- Run | Yrd Mat Sub Rec Scr Fac Turns Passed 27527 | 149 2704 12052 2379 8146 2097 Spaces Moved 10033 | 65 1030 4206 865 3081 786 Core 2 | 2 . . . . . Treads 9872 | 63 871 4206 865 3081 786 Legs . | . . . . . . Wheels 159 | . 159 . . . . Hover . | . . . . . . Flight . | . . . . . . Fastest Speed 50 | 50 95 240 260 260 162 Average Speed 246 | 156 182 253 260 260 228 Slowest Speed 349 | 160 320 260 260 260 349 Overloaded Moves . | . . . . . . Propulsion Burnouts . | . . . . . . Robots Hopped . | . . . . . . Cave-ins Triggered . | . . . . . . Exploration Rate (%) 69 | 4 100 98 99 96 19 Regions Visited 5 Branch Regions 3 Pre-discovered Areas 7 | . . 2 3 2 . Known Exits Taken . | . . . . . . Unknown Exits Taken 5 | 1 1 1 1 1 . Scrap Searched 9 | . . 4 . 5 . Spaces Dug 5 | . . 4 . . 1 Terrain Destroyed 49 | . 5 4 7 . 33 Melee . | . . . . . . Projectile 16 | . . 4 7 . 5 AOE 33 | . 5 . . . 28 Terrain Rammed . | . . . . . . Walls Destroyed . | . . . . . . Machines Disabled . | . . . . . . Actions | -11 -10 -10 -9 -9 -6 --------- Run | Yrd Mat Sub Rec Scr Fac Total 12348 | 88 1698 5402 941 3228 991 Wait 1695 | . 495 977 29 96 98 Move 10028 | 64 1029 4205 864 3080 786 Hop . | . . . . . . Pick Up 101 | 4 30 33 5 20 9 Fast Attach 24 | 7 6 2 2 1 6 Attach 10 | . . 1 . . 9 Detach 6 | . . 1 . . 5 Swap 66 | . 14 42 4 4 2 Drop 98 | . 17 42 8 24 7 Fire 298 | 13 104 97 27 . 57 Melee . | . . . . . . Ram . | . . . . . . Kick . | . . . . . . Crush 18 | . 3 1 2 . 12 Escape Stasis . | . . . . . . Rewire 3 | . . . . 3 . Trap . | . . . . . . Miscellaneous 1 | . . 1 . . . Route ------- -11/Scrapyard -10/Materials (discovered 5 exits: *Mat x3 / *Min / *Sub) -10/Subcaves (discovered 3 exits: [*Mat x2] / *Rec) -9/Recycling (discovered 2 exits: [*Fac] / *Scr) -9/Scraptown (discovered 2 exits: *Fac x2) -6/Factory (discovered 1 exit: [*Fac]) History --------- Turn | Location | Event 41 | -11/Scrapyard | Discovered new exit (range 16) 150 | -11/Scrapyard | Entered Materials 177 | -10/Materials | Discovered new exit (range 15) 303 | -10/Materials | Build established: Mutant 370 | -10/Materials | Discovered new exit (range 3) 598 | -10/Materials | Discovered new exit (range 6) 598 | -10/Materials | Identified exit to Mines 1068 | -10/Materials | Discovered new exit (range 16) 1367 | -10/Materials | Identified exit to Materials 1419 | -10/Materials | Build established: Scavenger-Mutant 2116 | -10/Materials | Build established: Mutant 2506 | -10/Materials | Repaired Lgt. Armor Plating 2534 | -10/Materials | Repaired Lgt. Treads 2561 | -10/Materials | Repaired Lgt. Treads 2589 | -10/Materials | Repaired Ion Engine 2616 | -10/Materials | Repaired Lgt. Treads 2643 | -10/Materials | Repaired Assault Rifle 2683 | -10/Materials | Repaired Imp. Heat Sink 2722 | -10/Materials | Repaired Imp. Terrain Scanner 2749 | -10/Materials | Repaired Ion Engine 2776 | -10/Materials | Repaired Ion Engine 2803 | -10/Materials | Repaired Ion Engine 2833 | -10/Materials | Discovered new exit (range 8) 2854 | -10/Materials | Entered Subcaves 2982 | -10/Subcaves | Ambushed by Subdweller buried in earth 3068 | -10/Subcaves | Core integrity fell below 50% 3124 | -10/Subcaves | Learned location of Zion (-6) 3325 | -10/Subcaves | Build established: Scavenger-Mutant 3721 | -10/Subcaves | A swath of the cavern ceiling suddenly collapsed 4325 | -10/Subcaves | Shifting Twisted Machinery released Sub. Power Source 4325 | -10/Subcaves | Shifting Twisted Machinery released Spk. Treads 4331 | -10/Subcaves | Discovered new exit (range 10) 4472 | -10/Subcaves | Visited triangular shrine 4488 | -10/Subcaves | Found Prototype Device 4488 | -10/Subcaves | Identified V3-11A's Pendant 4493 | -10/Subcaves | Befriended Subdweller 5295 | -10/Subcaves | Shifting Twisted Machinery released Riot Gun 5350 | -10/Subcaves | Shifting Twisted Machinery released Flamer 5662 | -10/Subcaves | A swath of the cavern ceiling suddenly collapsed 5818 | -10/Subcaves | Shifting Twisted Machinery released Barrage Gun 6024 | -10/Subcaves | Curiously followed by a Cobbler waking with a query about "LVR3C" 6170 | -10/Subcaves | Befriended Subdweller 6180 | -10/Subcaves | Befriended Subdweller 6390 | -10/Subcaves | Build established: Mutant 7396 | -10/Subcaves | Ambushed by Subdwellers from Twisted Machinery 7400 | -10/Subcaves | Befriended Subdweller 7400 | -10/Subcaves | Befriended Subdweller 7587 | -10/Subcaves | Lost 4 allies 7618 | -10/Subcaves | Discovered new exit (range 8) 7625 | -10/Subcaves | Befriended Subdweller 7635 | -10/Subcaves | Befriended Subdweller 8588 | -10/Subcaves | Build established: Derelict-Mutant 8990 | -10/Subcaves | Befriended Subdweller 9149 | -10/Subcaves | Visited Clippyterm 9156 | -10/Subcaves | Learned Factory trap positions 9156 | -10/Subcaves | Learned Research machine intel 9187 | -10/Subcaves | Disturbed a concealed Subdweller 9190 | -10/Subcaves | Befriended Subdweller 11147 | -10/Subcaves | Befriended Subdweller 12463 | -10/Subcaves | Released subatomizers from SUBCON Basin 14003 | -10/Subcaves | Discovered new exit (range 11) 14906 | -10/Subcaves | Entered Recycling 14906 | -9/Recycling | Accompanied by 2 allies 15122 | -9/Recycling | Scanned before Scraplab entrance 15621 | -9/Recycling | Discovered new exit (range 13) 17280 | -9/Recycling | Discovered new exit (range 3) 17285 | -9/Recycling | Entered Scraptown 17641 | -9/Scraptown | Delivered V3-11A's Pendant to T0-NE2 in exchange for information 18272 | -9/Scraptown | Scanned Subdweller tech in exchange for log data 18278 | -9/Scraptown | Learned Research stockpile data 18280 | -9/Scraptown | Learned Factory terminal intel 18283 | -9/Scraptown | Learned Research interactive machine intel 18285 | -9/Scraptown | Learned Research terminal intel 18382 | -9/Scraptown | Discovered new exit (range 7) 18675 | -9/Scraptown | Visited CR-KLE's Repair Center 18709 | -9/Scraptown | Visited Cave Peace 19454 | -9/Scraptown | Visited Scrapoid Research Area 19531 | -9/Scraptown | Visited Assassins FH 19630 | -9/Scraptown | Visited UFD Registry 19630 | -9/Scraptown | Registered with UFD as "Zeroglider" 19690 | -9/Scraptown | Visited Red Mages 19831 | -9/Scraptown | Visited Supply Room 19904 | -9/Scraptown | Visited IN-MT5's Study 20078 | -9/Scraptown | Visited Chapter 10 20159 | -9/Scraptown | Visited Abandonware Association 20208 | -9/Scraptown | Learned abandonware demo "REPAIR.EXE" 20208 | -9/Scraptown | Learned abandonware demo "KABOOM.EXE" 20606 | -9/Scraptown | Discovered new exit (range 5) 20715 | -9/Scraptown | Visited Botcube Research 20770 | -9/Scraptown | Visited Science Testing Area 20864 | -9/Scraptown | Visited Junk Cannon Lab 20953 | -9/Scraptown | Found Prototype Special Weapon 20953 | -9/Scraptown | Identified Junk Cannon 21108 | -9/Scraptown | Visited Scrap Suit Storage 21195 | -9/Scraptown | Found Scrap Suit 21230 | -9/Scraptown | Build established: Mutant 21378 | -9/Scraptown | Delivered Scrap Shield to a Scientist 21695 | -9/Scraptown | Visited Infowarlord's Domain 21796 | -9/Scraptown | Visited DA-N13 Charitable Foundation 21809 | -9/Scraptown | Found DCF Scrap (27 items) 21960 | -9/Scraptown | Found Botcube 22165 | -9/Scraptown | Botcube activated 22179 | -9/Scraptown | Botcube completed mutation into wheeled form, armed with 2 guns. 22199 | -9/Scraptown | Build established: Derelict-Mutant 22372 | -9/Scraptown | Visited Supply Room 22463 | -9/Scraptown | Found Exp. Sensor Array 22922 | -9/Scraptown | Found Scrap Suit 22999 | -9/Scraptown | Visited Curators Association 23602 | -9/Scraptown | CR-KLE repaired 4 parts 25431 | -9/Scraptown | Entered Factory 25431 | -6/Factory | Accompanied by 1 ally 25431 | -6/Factory | Evolved 8 slots: Propulsion x2, Utility x6 25432 | -6/Factory | Loaded intel: 80 trap records 25433 | -6/Factory | Loaded intel: 26 terminal locations 26499 | -6/Factory | System corruption reached 10% 27071 | -6/Factory | Discovered new exit (range 5) 27528 | -6/Factory | Self-destructed Last Messages --------------- 27381_ ALERT: Rogue bot located, Programmers report to Factory Zone 5D. 27396_ System corrupted: Matter fused (-8). 27405_ Acquired Force Field. 27414_ P-60 Hacker destroyed. 27415_ System corrupted: Energy discharge (-49). 27428_ R-10 Processor collects Shock Rifle. 27450_ U-05 Engineer builds a Door. 27456_ System corrupted: Heat flow error (+199). 27468_ W-25 Informer destroyed. 27470_ K-01 Serf collects debris. 27479_ Acquired Imp. Signal Interpreter. 27495_ G-50 Soldier destroyed. 27499_ System corrupted: Matter fused (-10). 27500_ R-10 Processor collects Hvy. Laser. 27503_ R-10 Processor collects Adv. Heat Sink. 27509_ Critical hit (Burn: +18). 27510_ K-01 Serf cleans the Power Conduit. 27514_ JX,W1 PAFCP6YIDAH3FTBFEF7XGSVS5%M